[Event "Live Chess"]
[Site "Chess.com"]
[Date "2023.05.21"]
[Round "-"]
[White "mirandaasilva"]
[Black "raminguy"]
[Result "0-1"]
[WhiteElo "1684"]
[BlackElo "1953"]
[TimeControl "300"]
[EndTime "21:30:28 PDT"]
[Termination "raminguy won on time"]

1. Nf3 {[%clk 0:04:54.9]} 1... Nf6 {[%clk 0:04:57.8]} 2. c4 {[%clk 0:04:52.6]}
2... e6 {[%clk 0:04:57]} 3. e3 {[%clk 0:04:50.2]} 3... d5 {[%clk 0:04:56.9]} 4.
cxd5 {[%clk 0:04:48.8]} 4... exd5 {[%clk 0:04:56]} 5. d4 {[%clk 0:04:48.7]} 5...
c6 {[%clk 0:04:55]} 6. Nc3 {[%clk 0:04:44.6]} 6... Be7 {[%clk 0:04:53.6]} 7. Bd3
{[%clk 0:04:42]} 7... O-O {[%clk 0:04:52.5]} 8. O-O {[%clk 0:04:40.6]} 8... Bg4
{[%clk 0:04:50.5]} 9. h3 {[%clk 0:04:39]} 9... Bh5 {[%clk 0:04:49.1]} 10. Qb3
{[%clk 0:04:27.6]} 10... Qc7 {[%clk 0:04:40.4]} 11. Ne5 {[%clk 0:04:21.6]} 11...
Nbd7 {[%clk 0:04:38.9]} 12. Nxd7 {[%clk 0:04:18]} 12... Qxd7 {[%clk 0:04:34.3]}
13. Bd2 {[%clk 0:04:17.6]} 13... Rfe8 {[%clk 0:04:22.8]} 14. Rae1 {[%clk
0:04:16.7]} 14... Bd6 {[%clk 0:04:14.5]} 15. f3 {[%clk 0:03:47.4]} 15... Bg3
{[%clk 0:04:00.1]} 16. Re2 {[%clk 0:03:44.9]} 16... b6 {[%clk 0:03:46.7]} 17.
Qc2 {[%clk 0:03:38.9]} 17... Rad8 {[%clk 0:03:20.3]} 18. Be1 {[%clk 0:03:22]}
18... Bb8 {[%clk 0:03:15.6]} 19. Bh4 {[%clk 0:03:19.8]} 19... Qd6 {[%clk
0:03:02.9]} 20. g4 {[%clk 0:02:35]} 20... Bg6 {[%clk 0:02:46.4]} 21. f4 {[%clk
0:01:39.6]} 21... Bxd3 {[%clk 0:02:15.3]} 22. Qxd3 {[%clk 0:01:39.5]} 22... Rc8
{[%clk 0:01:42.9]} 23. Bxf6 {[%clk 0:00:47.6]} 23... Qxf6 {[%clk 0:01:40.6]} 24.
e4 {[%clk 0:00:45.1]} 24... dxe4 {[%clk 0:01:36.1]} 25. Nxe4 {[%clk 0:00:45]}
25... Qh4 {[%clk 0:01:26.9]} 26. Rfe1 {[%clk 0:00:35.8]} 26... Red8 {[%clk
0:01:18]} 27. Ng5 {[%clk 0:00:29.9]} 27... Bxf4 {[%clk 0:01:11.1]} 28. Qf5
{[%clk 0:00:24.4]} 28... Qxg5 {[%clk 0:01:09.5]} 29. Qxc8 {[%clk 0:00:20.5]}
29... Be3+ {[%clk 0:00:51.9]} 30. Rxe3 {[%clk 0:00:18.5]} 30... Qxe3+ {[%clk
0:00:50.4]} 31. Rxe3 {[%clk 0:00:17.4]} 31... Rxc8 {[%clk 0:00:49.8]} 32. Re7
{[%clk 0:00:15.9]} 32... a5 {[%clk 0:00:48.8]} 33. Rb7 {[%clk 0:00:14.4]} 33...
b5 {[%clk 0:00:47.8]} 34. Rb6 {[%clk 0:00:12.7]} 34... Kf8 {[%clk 0:00:45]} 35.
d5 {[%clk 0:00:11.2]} 35... cxd5 {[%clk 0:00:43.1]} 36. Rxb5 {[%clk 0:00:08.1]}
36... Rc1+ {[%clk 0:00:42.6]} 37. Kf2 {[%clk 0:00:08]} 37... Rc2+ {[%clk
0:00:42]} 38. Kf3 {[%clk 0:00:06.4]} 38... Rh2 {[%clk 0:00:40.4]} 39. a4 {[%clk
0:00:05.6]} 39... Rxh3+ {[%clk 0:00:39.1]} 40. Kf4 {[%clk 0:00:05.5]} 40... Rd3
{[%clk 0:00:35.6]} 41. Rxa5 {[%clk 0:00:05.4]} 41... Rd4+ {[%clk 0:00:34]} 42.
Ke5 {[%clk 0:00:04.1]} 42... Rxg4 {[%clk 0:00:32.8]} 43. Rc5 {[%clk 0:00:03.6]}
43... Rg5+ {[%clk 0:00:31.3]} 44. Kf4 {[%clk 0:00:03.5]} 44... Rh5 {[%clk
0:00:29.8]} 45. a5 {[%clk 0:00:03.4]} 45... Rh4+ {[%clk 0:00:27.8]} 46. Kg3
{[%clk 0:00:03.3]} 46... Ra4 {[%clk 0:00:26]} 47. a6 {[%clk 0:00:03.2]} 47...
Rxa6 {[%clk 0:00:25]} 48. b4 {[%clk 0:00:02.6]} 48... Rb6 {[%clk 0:00:24.1]} 49.
b5 {[%clk 0:00:02.5]} 49... d4 {[%clk 0:00:22.9]} 50. Kg2 {[%clk 0:00:02.1]}
50... d3 {[%clk 0:00:22.2]} 51. Kg3 {[%clk 0:00:01.3]} 51... d2 {[%clk
0:00:21.6]} 52. Kf2 {[%clk 0:00:01.2]} 52... d1=Q {[%clk 0:00:20.8]} 0-1

[Event "Live Chess"]
[Site "Chess.com"]
[Date "2023.05.21"]
[Round "-"]
[White "smoggyrabbit"]
[Black "KeithArkell"]
[Result "0-1"]
[WhiteElo "1750"]
[BlackElo "2556"]
[TimeControl "300"]
[EndTime "21:31:40 PDT"]
[Termination "KeithArkell won on time"]

1. d4 {[%clk 0:04:58.7]} 1... e6 {[%clk 0:04:58.5]} 2. Nf3 {[%clk 0:04:57.1]}
2... Nf6 {[%clk 0:04:57.1]} 3. e3 {[%clk 0:04:55.5]} 3... c5 {[%clk 0:04:55.8]}
4. Bd3 {[%clk 0:04:49.7]} 4... cxd4 {[%clk 0:04:54.8]} 5. exd4 {[%clk
0:04:48.6]} 5... b6 {[%clk 0:04:54.2]} 6. b3 {[%clk 0:04:46.4]} 6... Be7 {[%clk
0:04:52.7]} 7. O-O {[%clk 0:04:45.2]} 7... O-O {[%clk 0:04:51.7]} 8. Bb2 {[%clk
0:04:44.3]} 8... Ba6 {[%clk 0:04:48.2]} 9. c4 {[%clk 0:04:40.5]} 9... d5 {[%clk
0:04:47]} 10. Nbd2 {[%clk 0:04:37.6]} 10... Nc6 {[%clk 0:04:45.5]} 11. Ne5
{[%clk 0:04:28.8]} 11... Rc8 {[%clk 0:04:43.2]} 12. f4 {[%clk 0:04:15.2]} 12...
dxc4 {[%clk 0:04:40.9]} 13. Nxc6 {[%clk 0:04:02.2]} 13... Rxc6 {[%clk
0:04:37.3]} 14. bxc4 {[%clk 0:03:57.1]} 14... Bb4 {[%clk 0:04:35.8]} 15. Rc1
{[%clk 0:03:11.2]} 15... Qc7 {[%clk 0:04:19.2]} 16. d5 {[%clk 0:02:15]} 16...
exd5 {[%clk 0:04:14.5]} 17. Bxf6 {[%clk 0:02:05.2]} 17... Rxf6 {[%clk
0:04:07.6]} 18. cxd5 {[%clk 0:01:58.9]} 18... Qb7 {[%clk 0:04:06.7]} 19. Ne4
{[%clk 0:01:08.7]} 19... Rh6 {[%clk 0:03:06.9]} 20. Bxa6 {[%clk 0:00:37.7]}
20... Qxa6 {[%clk 0:03:03.9]} 21. d6 {[%clk 0:00:35]} 21... Rd8 {[%clk
0:02:59.1]} 22. d7 {[%clk 0:00:28.8]} 22... Qb7 {[%clk 0:02:49.6]} 23. Qd4
{[%clk 0:00:12.3]} 23... Be7 {[%clk 0:02:43.7]} 24. Rfd1 {[%clk 0:00:10.7]}
24... f5 {[%clk 0:02:35.2]} 25. Qd5+ {[%clk 0:00:09.2]} 25... Qxd5 {[%clk
0:02:33]} 26. Rxd5 {[%clk 0:00:08.9]} 26... fxe4 {[%clk 0:02:32.4]} 27. Rc8
{[%clk 0:00:07.4]} 27... Kf7 {[%clk 0:02:30]} 28. Rxd8 {[%clk 0:00:05.6]} 28...
Bxd8 {[%clk 0:02:29.3]} 29. Kf2 {[%clk 0:00:03.4]} 29... Ke6 {[%clk 0:02:27.7]}
30. Rd1 {[%clk 0:00:01.3]} 30... Rh5 {[%clk 0:02:23.7]} 0-1

[Event "Live Chess"]
[Site "Chess.com"]
[Date "2023.05.21"]
[Round "-"]
[White "Conradical12"]
[Black "matt1979"]
[Result "0-1"]
[WhiteElo "1639"]
[BlackElo "1504"]
[TimeControl "300"]
[EndTime "21:32:15 PDT"]
[Termination "matt1979 won by resignation"]

1. e4 {[%clk 0:04:57.9]} 1... c5 {[%clk 0:04:57.5]} 2. Nc3 {[%clk 0:04:55.9]}
2... Nc6 {[%clk 0:04:54.7]} 3. Bb5 {[%clk 0:04:53.3]} 3... g6 {[%clk 0:04:46.7]}
4. d3 {[%clk 0:04:50.4]} 4... Bg7 {[%clk 0:04:45.5]} 5. Be3 {[%clk 0:04:46.3]}
5... d6 {[%clk 0:04:44]} 6. Qd2 {[%clk 0:04:44.1]} 6... e5 {[%clk 0:04:38]} 7.
Nd5 {[%clk 0:04:41.3]} 7... h6 {[%clk 0:04:30.5]} 8. O-O-O {[%clk 0:04:39.1]}
8... Ne7 {[%clk 0:04:28.5]} 9. Nf3 {[%clk 0:04:30.6]} 9... Nxd5 {[%clk
0:04:26.9]} 10. exd5 {[%clk 0:04:28.9]} 10... a6 {[%clk 0:04:25.8]} 11. dxc6
{[%clk 0:04:14.3]} 11... axb5 {[%clk 0:04:24]} 12. cxb7 {[%clk 0:04:14.2]} 12...
Bxb7 {[%clk 0:04:22.4]} 13. a3 {[%clk 0:04:10.3]} 13... Qb8 {[%clk 0:03:54]} 14.
Rhe1 {[%clk 0:03:48.1]} 14... Bc6 {[%clk 0:03:43.9]} 15. Qc3 {[%clk 0:03:23.2]}
15... b4 {[%clk 0:03:40.3]} 16. axb4 {[%clk 0:03:20.2]} 16... O-O {[%clk
0:03:19.3]} 17. bxc5 {[%clk 0:03:08.9]} 17... e4 {[%clk 0:03:13.7]} 18. Nd4
{[%clk 0:03:03.8]} 18... Bd5 {[%clk 0:02:57]} 19. dxe4 {[%clk 0:02:52.2]} 19...
Bxe4 {[%clk 0:02:50.3]} 20. Bxh6 {[%clk 0:02:50.5]} 20... Bxh6+ {[%clk
0:02:44.8]} 21. Kb1 {[%clk 0:02:47.6]} 21... Qa7 {[%clk 0:02:39.8]} 0-1

[Event "Live Chess"]
[Site "Chess.com"]
[Date "2023.05.21"]
[Round "-"]
[White "Biranidun"]
[Black "seabuck"]
[Result "1-0"]
[WhiteElo "2537"]
[BlackElo "1877"]
[TimeControl "300"]
[EndTime "21:33:33 PDT"]
[Termination "Biranidun won by checkmate"]

1. e4 {[%clk 0:04:59.3]} 1... e6 {[%clk 0:04:58.1]} 2. d4 {[%clk 0:04:58.2]}
2... d5 {[%clk 0:04:57]} 3. e5 {[%clk 0:04:56]} 3... c5 {[%clk 0:04:55.3]} 4. c3
{[%clk 0:04:55.4]} 4... Nc6 {[%clk 0:04:54.1]} 5. Nf3 {[%clk 0:04:54.5]} 5...
Bd7 {[%clk 0:04:52.4]} 6. Bd3 {[%clk 0:04:53.7]} 6... Rc8 {[%clk 0:04:45.6]} 7.
a3 {[%clk 0:04:52.1]} 7... cxd4 {[%clk 0:04:35.7]} 8. cxd4 {[%clk 0:04:50.4]}
8... Qb6 {[%clk 0:04:27.2]} 9. Bc2 {[%clk 0:04:44.6]} 9... Qa5+ {[%clk
0:04:15.6]} 10. Nc3 {[%clk 0:04:41.4]} 10... Bb4 {[%clk 0:03:59.1]} 11. Bd2
{[%clk 0:04:35.7]} 11... Bxc3 {[%clk 0:03:55.4]} 12. Bxc3 {[%clk 0:04:35.6]}
12... Qb6 {[%clk 0:03:51.7]} 13. O-O {[%clk 0:04:33.1]} 13... Nge7 {[%clk
0:03:49.9]} 14. h4 {[%clk 0:04:09.6]} 14... Na5 {[%clk 0:03:45.9]} 15. h5 {[%clk
0:03:52.6]} 15... Bb5 {[%clk 0:03:28]} 16. Re1 {[%clk 0:03:50.9]} 16... h6
{[%clk 0:03:26.3]} 17. Bb4 {[%clk 0:03:38.4]} 17... Nec6 {[%clk 0:02:43.5]} 18.
Bc5 {[%clk 0:03:37.1]} 18... Qd8 {[%clk 0:02:39.5]} 19. a4 {[%clk 0:03:31.7]}
19... Bc4 {[%clk 0:02:19.8]} 20. b3 {[%clk 0:03:26]} 20... b6 {[%clk 0:02:18.3]}
21. Ba3 {[%clk 0:03:13.9]} 21... Ba6 {[%clk 0:02:01.6]} 22. b4 {[%clk
0:03:13.3]} 22... Nc4 {[%clk 0:01:44.1]} 23. b5 {[%clk 0:03:12.5]} 23... Nxa3
{[%clk 0:01:40.9]} 24. Rxa3 {[%clk 0:03:12.4]} 24... Nb4 {[%clk 0:01:38.3]} 25.
Bb1 {[%clk 0:03:11.9]} 25... Bb7 {[%clk 0:01:29.7]} 26. Rb3 {[%clk 0:03:10]}
26... Qe7 {[%clk 0:01:22.7]} 27. Qd2 {[%clk 0:03:07.6]} 27... a5 {[%clk
0:01:12.8]} 28. bxa6 {[%clk 0:03:06.4]} 28... Nxa6 {[%clk 0:01:11.5]} 29. Rxb6
{[%clk 0:03:05.7]} 29... O-O {[%clk 0:01:09.9]} 30. Qd3 {[%clk 0:03:04.2]} 30...
f5 {[%clk 0:00:50.8]} 31. exf6 {[%clk 0:03:03.3]} 31... Rxf6 {[%clk 0:00:43.2]}
32. Qh7+ {[%clk 0:03:01.5]} 32... Kf8 {[%clk 0:00:37.6]} 33. Qh8+ {[%clk
0:02:46]} 33... Kf7 {[%clk 0:00:33.6]} 34. Ne5# {[%clk 0:02:45.9]} 1-0

[Event "Live Chess"]
[Site "Chess.com"]
[Date "2023.05.21"]
[Round "-"]
[White "Doge_Dandolo"]
[Black "Ayush_prahlad_Gupta"]
[Result "1-0"]
[WhiteElo "1935"]
[BlackElo "1768"]
[TimeControl "300"]
[EndTime "21:33:44 PDT"]
[Termination "Doge_Dandolo won on time"]

1. Nf3 {[%clk 0:04:59]} 1... e5 {[%clk 0:04:52.3]} 2. Nxe5 {[%clk 0:04:56.9]}
2... Nc6 {[%clk 0:04:50.6]} 3. d4 {[%clk 0:04:50.9]} 3... Nxe5 {[%clk
0:04:48.1]} 4. dxe5 {[%clk 0:04:50]} 4... Ke7 {[%clk 0:04:46.5]} 5. Nc3 {[%clk
0:04:46.9]} 5... f6 {[%clk 0:04:44]} 6. exf6+ {[%clk 0:04:45]} 6... Nxf6 {[%clk
0:04:43.8]} 7. Bg5 {[%clk 0:04:42.4]} 7... Kf7 {[%clk 0:04:43]} 8. e4 {[%clk
0:04:37.6]} 8... d6 {[%clk 0:04:37.3]} 9. Bc4+ {[%clk 0:04:35.9]} 9... Be6
{[%clk 0:04:35.1]} 10. Qe2 {[%clk 0:04:32.1]} 10... Be7 {[%clk 0:04:32.2]} 11.
O-O-O {[%clk 0:04:28.5]} 11... Re8 {[%clk 0:04:30.7]} 12. f4 {[%clk 0:04:26.1]}
12... c6 {[%clk 0:04:18.5]} 13. Bxe6+ {[%clk 0:04:16.1]} 13... Kxe6 {[%clk
0:04:17.2]} 14. e5 {[%clk 0:04:11.9]} 14... Nd5 {[%clk 0:04:10.9]} 15. Nxd5
{[%clk 0:04:01.1]} 15... cxd5 {[%clk 0:04:08.3]} 16. Rhe1 {[%clk 0:03:52.4]}
16... Kf7 {[%clk 0:04:03.6]} 17. Qd3 {[%clk 0:03:44.8]} 17... Kg8 {[%clk
0:04:00.9]} 18. Qxd5+ {[%clk 0:03:43.3]} 18... Kh8 {[%clk 0:03:59.5]} 19. Bxe7
{[%clk 0:03:41.2]} 19... Qxe7 {[%clk 0:03:57.5]} 20. Qxd6 {[%clk 0:03:38.1]}
20... Qh4 {[%clk 0:03:54.9]} 21. Qc7 {[%clk 0:03:26.4]} 21... Qxf4+ {[%clk
0:03:48.4]} 22. Kb1 {[%clk 0:03:24.7]} 22... Rac8 {[%clk 0:03:41.8]} 23. Qxb7
{[%clk 0:03:21.5]} 23... Qxh2 {[%clk 0:03:40.3]} 24. a3 {[%clk 0:03:15]} 24...
Rb8 {[%clk 0:03:37.4]} 25. Qf3 {[%clk 0:03:07.6]} 25... Qh6 {[%clk 0:03:27.9]}
26. Rd6 {[%clk 0:03:00.5]} 26... Qh4 {[%clk 0:03:16.9]} 27. Red1 {[%clk
0:02:47.3]} 27... Qa4 {[%clk 0:03:15.7]} 28. Qg3 {[%clk 0:02:35.4]} 28... Qb5
{[%clk 0:00:30.8]} 29. Qb3 {[%clk 0:02:17.3]} 29... Qxe5 {[%clk 0:00:26.9]} 30.
Qxb8 {[%clk 0:02:05.2]} 30... Rxb8 {[%clk 0:00:20.2]} 31. Rd8+ {[%clk
0:02:03.8]} 31... Qe8 {[%clk 0:00:19.7]} 32. Rxe8+ {[%clk 0:02:02.6]} 32... Rxe8
{[%clk 0:00:19.1]} 33. c4 {[%clk 0:02:00.2]} 33... h6 {[%clk 0:00:18.8]} 34. c5
{[%clk 0:01:58.8]} 34... Re2 {[%clk 0:00:17.8]} 35. c6 {[%clk 0:01:54.1]} 35...
Re8 {[%clk 0:00:16.5]} 36. c7 {[%clk 0:01:51.8]} 36... Re2 {[%clk 0:00:14]} 37.
c8=Q+ {[%clk 0:01:48.6]} 37... Kh7 {[%clk 0:00:13.9]} 38. Qf5+ {[%clk
0:01:44.3]} 38... Kg8 {[%clk 0:00:09.5]} 39. Rd8+ {[%clk 0:01:41.8]} 1-0

[Event "Live Chess"]
[Site "Chess.com"]
[Date "2023.05.21"]
[Round "-"]
[White "chessfiction"]
[Black "NatashaRegan"]
[Result "1-0"]
[WhiteElo "2365"]
[BlackElo "1740"]
[TimeControl "300"]
[EndTime "21:34:28 PDT"]
[Termination "chessfiction won by resignation"]

1. e4 {[%clk 0:04:58.5]} 1... e5 {[%clk 0:04:58.1]} 2. Nf3 {[%clk 0:04:57.7]}
2... Nc6 {[%clk 0:04:57]} 3. Bb5 {[%clk 0:04:57.1]} 3... Nge7 {[%clk 0:04:54.8]}
4. O-O {[%clk 0:04:56.3]} 4... g6 {[%clk 0:04:50.4]} 5. d4 {[%clk 0:04:55.3]}
5... exd4 {[%clk 0:04:43.8]} 6. c3 {[%clk 0:04:47.1]} 6... dxc3 {[%clk
0:04:37.3]} 7. Ng5 {[%clk 0:04:39.9]} 7... Bg7 {[%clk 0:04:31]} 8. Qf3 {[%clk
0:04:35.8]} 8... Ne5 {[%clk 0:04:23.7]} 9. Qg3 {[%clk 0:04:30]} 9... c6 {[%clk
0:04:10.8]} 10. Be2 {[%clk 0:04:26.8]} 10... c2 {[%clk 0:03:59.6]} 11. Na3
{[%clk 0:04:21.8]} 11... O-O {[%clk 0:03:52]} 12. Bf4 {[%clk 0:04:13.2]} 12...
d6 {[%clk 0:03:45.5]} 13. Nxc2 {[%clk 0:04:11.6]} 13... h6 {[%clk 0:03:37.1]}
14. Nf3 {[%clk 0:03:59.2]} 14... Nxf3+ {[%clk 0:03:26]} 15. Bxf3 {[%clk
0:03:59.1]} 15... d5 {[%clk 0:03:20.8]} 16. Rad1 {[%clk 0:03:55]} 16... Qa5
{[%clk 0:03:16.1]} 17. Bd6 {[%clk 0:03:51.2]} 17... Re8 {[%clk 0:03:11.3]} 18.
Bxe7 {[%clk 0:03:40.7]} 18... Rxe7 {[%clk 0:03:10.1]} 19. exd5 {[%clk
0:03:40.6]} 19... cxd5 {[%clk 0:03:08]} 20. Rxd5 {[%clk 0:03:40.5]} 20... Qxa2
{[%clk 0:03:01.9]} 21. Rd8+ {[%clk 0:03:35.9]} 21... Kh7 {[%clk 0:03:00.2]} 22.
Ne3 {[%clk 0:03:15.8]} 22... Qxb2 {[%clk 0:02:54.8]} 23. Nc4 {[%clk 0:03:11.6]}
23... Qf6 {[%clk 0:02:46.8]} 24. Nd6 {[%clk 0:03:03.5]} 24... Rc7 {[%clk
0:02:32.4]} 25. Ne8 {[%clk 0:02:40.5]} 25... Qxd8 {[%clk 0:02:29]} 26. Nxc7
{[%clk 0:02:40.2]} 26... Rb8 {[%clk 0:02:21.3]} 27. Ne6 {[%clk 0:02:38]} 27...
Bxe6 {[%clk 0:02:18.7]} 28. Rd1 {[%clk 0:02:34.3]} 28... Qa5 {[%clk 0:02:15.2]}
29. Qxb8 {[%clk 0:02:32.4]} 29... Be5 {[%clk 0:02:07.5]} 30. Qxb7 {[%clk
0:02:25.5]} 30... Qa4 {[%clk 0:01:58.1]} 31. Re1 {[%clk 0:02:19.8]} 31... Bg7
{[%clk 0:01:53.6]} 32. g3 {[%clk 0:02:09.3]} 32... Qd4 {[%clk 0:01:51]} 33. Kg2
{[%clk 0:02:04.4]} 33... a5 {[%clk 0:01:49.2]} 34. h4 {[%clk 0:01:52.3]} 34...
h5 {[%clk 0:01:42.8]} 35. Re4 {[%clk 0:01:31.4]} 35... Qc3 {[%clk 0:01:29.2]}
36. Rf4 {[%clk 0:01:25.5]} 36... Qb3 {[%clk 0:01:14.1]} 37. Qa7 {[%clk 0:00:53]}
37... Be5 {[%clk 0:01:00.1]} 38. Qxa5 {[%clk 0:00:26.4]} 38... Bxf4 {[%clk
0:00:56]} 39. gxf4 {[%clk 0:00:26.3]} 39... Qc4 {[%clk 0:00:47.2]} 40. Qg5
{[%clk 0:00:24.3]} 40... Qc3 {[%clk 0:00:39.4]} 41. Be4 {[%clk 0:00:22]} 41...
Kg7 {[%clk 0:00:36.2]} 42. f5 {[%clk 0:00:20.9]} 42... Bc4 {[%clk 0:00:30.5]}
43. fxg6 {[%clk 0:00:19.5]} 43... fxg6 {[%clk 0:00:27.6]} 44. Qxg6+ {[%clk
0:00:18.6]} 44... Kf8 {[%clk 0:00:26.4]} 45. Qf5+ {[%clk 0:00:17.3]} 45... Ke7
{[%clk 0:00:24.9]} 46. Bf3 {[%clk 0:00:16.7]} 46... Kd6 {[%clk 0:00:23.1]} 47.
Qg6+ {[%clk 0:00:15.1]} 47... Kc5 {[%clk 0:00:21.3]} 48. Qxh5+ {[%clk 0:00:15]}
48... Kb4 {[%clk 0:00:19.4]} 49. Qg4 {[%clk 0:00:14.9]} 49... Kb3 {[%clk
0:00:17.6]} 50. h5 {[%clk 0:00:14.8]} 50... Qd4 {[%clk 0:00:15.9]} 51. Qxd4
{[%clk 0:00:13.6]} 1-0

[Event "Live Chess"]
[Site "Chess.com"]
[Date "2023.05.21"]
[Round "-"]
[White "Conradical12"]
[Black "KeithArkell"]
[Result "0-1"]
[WhiteElo "1639"]
[BlackElo "2556"]
[TimeControl "300"]
[EndTime "21:34:28 PDT"]
[Termination "KeithArkell won by resignation"]

1. e4 {[%clk 0:04:54.7]} 1... c6 {[%clk 0:04:58.7]} 2. d4 {[%clk 0:04:52.8]}
2... d5 {[%clk 0:04:57.9]} 3. f3 {[%clk 0:04:52.1]} 3... e5 {[%clk 0:04:56.6]}
4. dxe5 {[%clk 0:04:48.9]} 4... Bc5 {[%clk 0:04:55.8]} 5. b3 {[%clk 0:04:34.3]}
5... Qb6 {[%clk 0:04:54.2]} 6. Qe2 {[%clk 0:04:29.6]} 6... Bxg1 {[%clk
0:04:45.7]} 7. exd5 {[%clk 0:04:27.3]} 7... cxd5 {[%clk 0:04:44.7]} 8. Nc3
{[%clk 0:04:22.5]} 8... Ne7 {[%clk 0:04:02.3]} 9. Bb2 {[%clk 0:04:05.3]} 9...
Qe3 {[%clk 0:03:57.6]} 10. Qxe3 {[%clk 0:04:00.9]} 10... Bxe3 {[%clk 0:03:56.3]}
11. Be2 {[%clk 0:03:59.2]} 11... Bd4 {[%clk 0:03:54.4]} 0-1

[Event "Live Chess"]
[Site "Chess.com"]
[Date "2023.05.21"]
[Round "-"]
[White "Long1968"]
[Black "Tushinskiy"]
[Result "0-1"]
[WhiteElo "1060"]
[BlackElo "2214"]
[TimeControl "300"]
[EndTime "21:35:26 PDT"]
[Termination "Tushinskiy won on time"]

1. e4 {[%clk 0:04:57.4]} 1... e5 {[%clk 0:04:58.7]} 2. f4 {[%clk 0:04:55]} 2...
d6 {[%clk 0:04:58.6]} 3. Bc4 {[%clk 0:04:51.7]} 3... Nf6 {[%clk 0:04:55.3]} 4.
Nc3 {[%clk 0:04:48.5]} 4... Bg4 {[%clk 0:04:54.1]} 5. Nf3 {[%clk 0:04:45.2]}
5... Nbd7 {[%clk 0:04:53.3]} 6. O-O {[%clk 0:04:41.1]} 6... Be7 {[%clk 0:04:52]}
7. h3 {[%clk 0:04:23.9]} 7... Bxf3 {[%clk 0:04:50.2]} 8. Qxf3 {[%clk 0:04:20]}
8... O-O {[%clk 0:04:50.1]} 9. g4 {[%clk 0:04:06.8]} 9... exf4 {[%clk
0:04:48.5]} 10. Qxf4 {[%clk 0:04:00.8]} 10... Ne5 {[%clk 0:04:47.7]} 11. Bb3
{[%clk 0:03:53.8]} 11... c5 {[%clk 0:04:45.3]} 12. g5 {[%clk 0:03:39.8]} 12...
Nh5 {[%clk 0:04:43]} 13. Qf2 {[%clk 0:02:49.1]} 13... Bxg5 {[%clk 0:04:35.6]}
14. d4 {[%clk 0:02:43.7]} 14... cxd4 {[%clk 0:04:34.2]} 15. Qxd4 {[%clk
0:02:33]} 15... Bxc1 {[%clk 0:04:29.7]} 16. Raxc1 {[%clk 0:02:27.4]} 16... Qg5+
{[%clk 0:04:28.3]} 17. Kf2 {[%clk 0:02:06.5]} 17... Qg3+ {[%clk 0:04:20.3]} 18.
Ke2 {[%clk 0:02:00.4]} 18... Nf4+ {[%clk 0:04:17.1]} 19. Rxf4 {[%clk 0:01:39]}
19... Qxf4 {[%clk 0:04:15.3]} 20. Rf1 {[%clk 0:01:30.8]} 20... Qh2+ {[%clk
0:04:12.3]} 21. Rf2 {[%clk 0:01:22.1]} 21... Qxh3 {[%clk 0:04:12.2]} 22. Nd5
{[%clk 0:00:50.3]} 22... Rae8 {[%clk 0:04:00.6]} 23. Qxa7 {[%clk 0:00:34.8]}
23... Qh5+ {[%clk 0:03:54.3]} 24. Kd2 {[%clk 0:00:16.9]} 24... Nf3+ {[%clk
0:03:50]} 25. Kc3 {[%clk 0:00:12.5]} 25... Rxe4 {[%clk 0:03:46.4]} 0-1

[Event "Live Chess"]
[Site "Chess.com"]
[Date "2023.05.21"]
[Round "-"]
[White "matt1979"]
[Black "Biranidun"]
[Result "0-1"]
[WhiteElo "1504"]
[BlackElo "2537"]
[TimeControl "300"]
[EndTime "21:35:28 PDT"]
[Termination "Biranidun won by resignation"]

1. f4 {[%clk 0:04:58.2]} 1... d5 {[%clk 0:04:58.8]} 2. e3 {[%clk 0:04:55.6]}
2... Nf6 {[%clk 0:04:58.3]} 3. Nf3 {[%clk 0:04:54.4]} 3... g6 {[%clk 0:04:58.2]}
4. Be2 {[%clk 0:04:51]} 4... Bg7 {[%clk 0:04:58.1]} 5. O-O {[%clk 0:04:49.8]}
5... O-O {[%clk 0:04:58]} 6. Nc3 {[%clk 0:04:47.9]} 6... c5 {[%clk 0:04:56.9]}
7. d3 {[%clk 0:04:47]} 7... d4 {[%clk 0:04:56.4]} 8. Ne4 {[%clk 0:04:45.5]} 8...
Nd5 {[%clk 0:04:55.8]} 9. Nxc5 {[%clk 0:04:38.9]} 9... dxe3 {[%clk 0:04:52.9]}
10. g3 {[%clk 0:04:20.5]} 10... Nc6 {[%clk 0:04:44.2]} 11. Ne4 {[%clk
0:04:15.6]} 11... Qb6 {[%clk 0:04:42.6]} 12. Qe1 {[%clk 0:04:00.5]} 12... Bh3
{[%clk 0:04:41]} 13. Bd1 {[%clk 0:03:42.8]} 13... e2+ {[%clk 0:04:35.6]} 0-1

[Event "Live Chess"]
[Site "Chess.com"]
[Date "2023.05.21"]
[Round "-"]
[White "BostonStrangler"]
[Black "LutherSullivan"]
[Result "1-0"]
[WhiteElo "2059"]
[BlackElo "2192"]
[TimeControl "300"]
[EndTime "21:35:54 PDT"]
[Termination "BostonStrangler won - game abandoned"]

1. Nf3 {[%clk 0:04:58.3]} 1... Nf6 {[%clk 0:04:58.5]} 2. b3 {[%clk 0:04:57.4]}
2... g6 {[%clk 0:04:56.6]} 3. Bb2 {[%clk 0:04:56.7]} 3... Bg7 {[%clk 0:04:56]}
4. e4 {[%clk 0:04:54.9]} 4... d6 {[%clk 0:04:48.1]} 5. e5 {[%clk 0:04:51.4]}
5... dxe5 {[%clk 0:04:46.4]} 6. Bxe5 {[%clk 0:04:49.7]} 6... O-O {[%clk
0:04:43.8]} 7. Bc4 {[%clk 0:04:44.5]} 7... Nc6 {[%clk 0:04:41.8]} 8. Bb2 {[%clk
0:04:42.9]} 8... e5 {[%clk 0:04:39.4]} 9. O-O {[%clk 0:04:36.7]} 9... Re8 {[%clk
0:04:35.2]} 10. Ng5 {[%clk 0:04:34.5]} 10... Nd5 {[%clk 0:04:29.6]} 11. Nxf7
{[%clk 0:04:24.8]} 11... Kxf7 {[%clk 0:04:27]} 12. Qf3+ {[%clk 0:04:24.4]} 12...
Kg8 {[%clk 0:04:23.9]} 13. Bxd5+ {[%clk 0:04:22.5]} 13... Kh8 {[%clk 0:04:23.4]}
14. Bxc6 {[%clk 0:04:13.9]} 14... bxc6 {[%clk 0:04:12.3]} 15. Qxc6 {[%clk
0:04:13.4]} 15... Rb8 {[%clk 0:04:10.1]} 16. Na3 {[%clk 0:04:06.5]} 16... Bb7
{[%clk 0:04:04.5]} 17. Qc3 {[%clk 0:04:01.3]} 17... Re7 {[%clk 0:03:45.1]} 18.
Qe3 {[%clk 0:03:40.2]} 18... Qd5 {[%clk 0:03:33.4]} 19. f3 {[%clk 0:03:32.4]}
19... Kg8 {[%clk 0:03:09.8]} 20. Qxa7 {[%clk 0:03:22.5]} 20... Ree8 {[%clk
0:03:03]} 21. Nc4 {[%clk 0:03:14.2]} 21... Bf8 {[%clk 0:02:59.6]} 22. Qa5 {[%clk
0:02:56.9]} 22... Bc5+ {[%clk 0:02:54.6]} 23. Kh1 {[%clk 0:02:50.7]} 23... Ra8
{[%clk 0:02:47.8]} 24. Qc3 {[%clk 0:02:23.5]} 24... Bd4 {[%clk 0:02:44.4]} 25.
Qd3 {[%clk 0:02:18.7]} 25... c5 {[%clk 0:02:28.8]} 26. c3 {[%clk 0:02:08]} 1-0